[Event "10th Amsterdam Science Park 2022"]
[Site "Amsterdam"]
[Date "2022.07.19"]
[Round "2.6"]
[White "Labruyere, Roger"]
[Black "Stolwijk, Colin"]
[Result "1/2-1/2"]
[ECO "B12"]
[WhiteElo "2070"]
[BlackElo "2277"]
[Annotator "TA"]
[PlyCount "121"]
[EventDate "2022.07.18"]
[EventCountry "NED"]
[SourceTitle "playchess.com"]
[Source "ChessBase"]
[SourceQuality "1"]
[TimeControl "5400+30"]

{[%evp 10,121,15,21,24,15,17,-15,-9,-46,5,6,0,-52,-28,-25,-22,-35,-41,-30,6,-18,-29,-129,-24,-25,32,-54,-41,-50,-51,-35,-52,-46,-56,-33,66,0,41,31,90,79,69,77,129,118,152,151,179,166,151,165,293,128,114,129,216,94,251,246,266,246,263,248,310,317,321,322,308,309,294,286,409,401,438,507,506,501,490,474,471,418,386,68,109,45,97,0,0,0,0,0,0,0,0,0,1140,0,0,0,0,0,0,0,0,0,0,0,0,0,0,0,0,0]} 1. e4 {[%emt 0:00:45]} c6 {[%emt 0:00:05]} 2. d4 {[%emt 0:00:03]} d5 {[%emt 0:00:05]} 3. e5 {[%emt 0:00:02]} Bf5 {[%emt 0:00:07]} 4. Nd2 {[%emt 0:00:08]} e6 {[%emt 0:00:17]} 5. Nb3 {[%emt 0:00:03]} Nd7 {[%emt 0:00:16]} 6. Nf3 {[%emt 0:00:06]} Qc7 {[%emt 0:00:27] B12: Caro-Kann: Advance Variation.} 7. Be2 {[%emt 0:03:01]} c5 {[%emt 0:00:22] [#]} 8. Be3 $146 {[%emt 0:01:52]} ({Predecessor:} 8. dxc5 Bxc5 9. Nxc5 Qxc5 10. c3 Ne7 11. Be3 Qc7 12. Nd4 Nxe5 13. Nb5 Qd7 14. Nxa7 {0-1 (28) So,W (2775)-Keymer,V (2675) Chess.com INT 2022}) 8... c4 {[%emt 0:03:46]} 9. Nc1 {[%emt 0:07:02]} h6 {[%emt 0:03:07]} (9... O-O-O $15) 10. O-O $11 {[%emt 0:00:10]} Ne7 {[%emt 0:01:11]} 11. Nh4 {[%emt 0:06:06]} (11. a4 $11) 11... Be4 {[%emt 0:02:40]} 12. f3 {[%emt 0:02:25]} Bh7 {[%emt 0:06:02]} 13. f4 {[%emt 0:00:12] Against g5} O-O-O {[%emt 0:04:44]} 14. c3 {[%emt 0:05:38]} Nc6 {[%emt 0:07:37]} 15. b3 {[%emt 0:14:46]} Be7 {[%emt 0:00:06]} 16. Bf2 {[%emt 0:00:17]} (16. Nf3 $11 {remains equal.}) 16... Ba3 {[%emt 0:03:43]} ({Black should play} 16... g5 $1 $17 {[%cal Rg5h4]} 17. Nf3 gxf4) 17. Qd2 {[%emt 0:02:54]} b5 {[%emt 0:00:26]} (17... Nb6 $11) 18. f5 {[%emt 0:07:11]} ({Only move:} 18. Bg4 $1 $14) 18... exf5 $15 {[%emt 0:04:38] Threatens to win with ...g5.} 19. Bg3 {[%emt 0:00:22]} f4 {[%emt 0:00:42]} 20. Bxf4 {[%emt 0:02:29][%cal Oe5e6] Strongly threatening e6!} g5 {[%emt 0:00:40]} 21. e6 $1 {[%emt 0:00:08]} gxf4 {[%emt 0:01:29]} 22. exd7+ {[%emt 0:00:05]} Kb7 {[%emt 0:05:16]} (22... Kxd7 23. Bg4+ Ke8 24. Ne2 $14 (24. bxc4 dxc4 25. Bf5 Be7 $16)) (22... Qxd7 $15 23. Rxf4 Rdg8) 23. bxc4 {[%emt 0:13:33]} (23. Bg4 $14) 23... bxc4 {[%emt 0:00:39]} (23... dxc4 $5 {[%cal Ra3e7]} 24. Rxf4 Be7 $11) 24. Bg4 {[%emt 0:08:45]} Rhg8 {[%emt 0:15:35]} (24... Be7 $14 25. Nf5 h5 26. Nxe7 Nxe7) 25. Bf5 $1 $16 {[%emt 0:01:41]} Bxf5 {[%emt 0:00:32]} 26. Nxf5 {[%emt 0:00:02]} Qxd7 {[%emt 0:04:14]} (26... Ne7 $142 27. Nxh6 Rg7) 27. Qxf4 {[%emt 0:00:13]} Ka8 {[%emt 0:06:56]} 28. Ne2 {[%emt 0:01:18]} Rde8 {[%emt 0:01:33]} 29. Qf3 {[%emt 0:02:14] Hoping for Ne3.} ({Stronger than} 29. Nxh6 Bd6 30. Qd2 (30. Qxf7 Qxf7 31. Rxf7 Rg6 $17) 30... Qh3 $11) 29... Rg6 {[%emt 0:01:51]} 30. Rae1 {[%emt 0:06:37]} Re4 {[%emt 0:10:24]} (30... Rf6 $142 31. Qh5 Ree6) 31. Neg3 {[%emt 0:01:10]} (31. Ne3 $18 {has better winning chances.}) 31... Rxe1 {[%emt 0:00:15]} 32. Rxe1 {[%emt 0:00:02] Black must now prevent Ne3.} Re6 {[%emt 0:01:05]} (32... Rf6 $16) 33. Re2 {[%emt 0:02:26]} (33. Ne3 $18) 33... Rxe2 $2 {[%emt 0:07:01]} (33... Rf6 $16 {is a better defense.}) 34. Nxe2 $18 {[%emt 0:01:08] Pair of Knights!} ({Not} 34. Qxe2 Bc1 $14) 34... Qe6 {[%emt 0:04:14]} 35. Ne3 {[%emt 0:00:58]} Ne7 {[%emt 0:00:43]} 36. Nf4 {[%emt 0:01:05]} Qe4 {[%emt 0:01:20]} 37. Qxe4 {[%emt 0:04:42]} ({Less strong is} 37. Nfxd5 Qxf3 38. gxf3 Nxd5 39. Nxd5 Kb7 $16) 37... dxe4 {[%emt 0:00:02]} 38. Nxc4 {[%emt 0:00:11][%mdl 4096] Endgame KBN-KNN} Bc1 {[%emt 0:00:07] [#]} 39. Ne2 {[%emt 0:00:47]} Bg5 {[%emt 0:00:07]} 40. Ng3 {[%emt 0:01:13]} Nd5 {[%emt 0:05:33]} (40... f5 {was necessary.} 41. Nd6 Bd2 42. Ndxf5 Nxf5 43. Nxf5 Bxc3) 41. Nxe4 {[%emt 0:01:32]} f5 {[%emt 0:00:00]} 42. Nxg5 {[%emt 0:00:00]} hxg5 {[%emt 0:00:00] KN-KN} 43. Nd6 {[%emt 0:00:00]} Nxc3 {[%emt 0:00:00]} 44. Nxf5 {[%emt 0:00:00]} Nxa2 {[%emt 0:00:00]} 45. Kf2 {[%emt 0:00:00]} a5 {[%emt 0:00:00]} 46. Nd6 {[%emt 0:00:00]} (46. Kf3 $18) 46... a4 {[%emt 0:00:00]} 47. Nc4 {[%emt 0:00:00]} (47. Ke3 $16) 47... Kb7 $14 {[%emt 0:00:00]} 48. Nb2 {[%emt 0:00:00]} ({White should try} 48. Na3 $16 Nc3 49. Ke3) 48... Nc3 $11 {[%emt 0:00:00] And now ...a3 would win.} 49. Nxa4 Nxa4 {[%emt 0:00:00] KN-K3P} 50. Kf3 {[%emt 0:00:00] Kg4 is the strong threat.} Kc6 {[%emt 0:00:00]} 51. Kg4 {[%emt 0:00:00]} Kd5 {[%emt 0:00:00]} 52. Kxg5 {[%emt 0:00:00]} Kxd4 $2 {[%emt 0:00:00][%mdl 8192] [#] KN-KPP} (52... Ke6 $11) 53. h4 $2 {[%emt 0:00:00]} (53. Kf5 $1 $18 Kc5 54. h4) 53... Ke5 {[%emt 0:00:00] The position is equal.} 54. g4 {[%emt 0:00:00]} Nc5 {[%emt 0:00:00]} 55. Kg6 {[%emt 0:00:00]} Ne6 {[%emt 0:00:00]} 56. g5 {[%emt 0:00:00]} Nf4+ {[%emt 0:00:00]} 57. Kh6 {[%emt 0:00:00]} Kf5 {[%emt 0:00:20]} 58. h5 {[%emt 0:00:00]} Ne6 {[%emt 0:00:12]} 59. g6 {[%emt 0:00:00] g7 would kill now.} Kf6 {[%emt 0:00:06] Against g7} 60. Kh7 {[%emt 0:00:00]} Nf8+ {[%emt 0:00:16]} 61. Kg8 {[%emt 0:00:00] Weighted Error Value: White=0.38/Black=0.29 (precise)} 1/2-1/2

[Event "10th Amsterdam Science Park 2022"]
[Site "Amsterdam"]
[Date "2022.07.19"]
[Round "2.7"]
[White "De Groote, Ewoud"]
[Black "Berrevoets, Jeroen"]
[Result "0-1"]
[ECO "C07"]
[WhiteElo "2245"]
[BlackElo "2064"]
[Annotator "TA"]
[PlyCount "100"]
[EventDate "2022.07.18"]
[EventCountry "NED"]
[SourceTitle "playchess.com"]
[Source "ChessBase"]
[SourceQuality "1"]
[TimeControl "5400+30"]

{[%evp 9,100,14,0,0,9,10,13,0,4,0,9,0,0,14,8,0,14,0,8,8,8,8,6,-10,20,21,18,17,64,58,38,43,38,47,60,31,38,39,35,-13,25,0,0,0,12,-79,-79,-71,-71,-97,-79,-77,-70,-104,-96,-101,-17,-95,-9,-32,-36,-269,-261,-276,-303,-263,-303,-300,-262,-286,-269,-223,-224,-328,-320,-320,-312,-277,-287,-458,-447,-410,-304,-435,-465,-714,-717,-685,-667,-610,-621,-528,-479]} 1. e4 {[%emt 0:00:05]} e6 {[%emt 0:00:26]} 2. d4 {[%emt 0:00:06]} d5 {[%emt 0:00:04]} 3. Nd2 {[%emt 0:00:27]} c5 {[%emt 0:00:19]} 4. exd5 {[%emt 0:00:30]} Qxd5 {[%emt 0:00:09]} 5. dxc5 {[%emt 0:01:32]} Nf6 {[%emt 0:01:21]} 6. Ngf3 {[%emt 0:02:31] C07: French Tarrasch: 3...c5, 4 Ngf3 and 4 exd5 Qxd5.} Qxc5 {[%emt 0:01:01]} 7. Bd3 {[%emt 0:04:48]} Be7 {[%emt 0:00:10]} 8. Qe2 {[%emt 0:04:31] The position is equal.} Nbd7 {[%emt 0:02:09]} 9. O-O {[%emt 0:06:41]} O-O {[%emt 0:03:11]} 10. Ne4 {[%emt 0:11:28]} Nxe4 {[%emt 0:07:45]} 11. Qxe4 {[%emt 0:00:08][%csl Gd3][%cal Re4h7] [#]} Nf6 {[%emt 0:03:30]} 12. Qh4 {[%emt 0:04:47]} Rd8 {[%emt 0:04:48]} 13. Be3 {[%emt 0:03:00] [#]} Qh5 $146 {[%emt 0:09:39]} ({Predecessor:} 13... Qb4 14. Bd4 e5 15. Bxe5 Qxh4 16. Nxh4 Ng4 17. Nf3 Nxe5 18. Nxe5 Be6 19. Rfe1 Bf6 {1-0 (71) Rudolf,A (2313)-Rapport,J (2341) Pozarevac 2009}) 14. Qxh5 {[%emt 0:02:30]} Nxh5 {[%emt 0:00:02]} 15. Rfd1 {[%emt 0:02:16]} Nf6 {[%emt 0:01:59][%cal Bh5f6,Bf6d5,Bd5f4][%mdl 32]} 16. a4 {[%emt 0:12:36]} h6 {[%emt 0:03:39]} 17. c3 {[%emt 0:05:27]} Nd5 {[%emt 0:02:32]} 18. Bd4 {[%emt 0:00:45]} a6 {[%emt 0:09:50]} (18... Bd7 $11) 19. Ne5 $14 {[%emt 0:05:35][%cal Bf3e5,Be5c4,Bc4a5][%mdl 32]} Nf4 {[%emt 0:03:38]} 20. Bf1 {[%emt 0:00:27]} f6 {[%emt 0:02:54]} 21. Nc4 {[%emt 0:02:02]} e5 {[%emt 0:04:14]} 22. Bb6 {[%emt 0:07:00]} (22. Nb6 $5 {[%cal Rd4e5]} Bg4 23. Nxa8 Bxd1 24. Rxd1 $14) 22... Rxd1 {[%emt 0:03:53]} 23. Rxd1 {[%emt 0:00:07]} Be6 {[%emt 0:00:42]} 24. f3 {[%emt 0:12:39]} (24. Nd6 $14 {might be stronger.}) 24... Rc8 {[%emt 0:01:35]} (24... Nd5 $5 {[%cal Rd5b6]} 25. Bf2 b5 26. axb5 axb5 $11) 25. Na5 {[%emt 0:00:36]} Nd5 {[%emt 0:03:40]} 26. Bf2 {[%emt 0:00:30]} b6 {[%emt 0:02:47]} 27. c4 {[%emt 0:06:15]} (27. Bc4 $11 {remains equal.}) 27... Nc3 $1 $17 {[%emt 0:02:25]} ({Of course not} 27... bxa5 28. cxd5 Rd8 29. Bc4 $11) 28. bxc3 {[%emt 0:00:14]} bxa5 {[%emt 0:00:01]} 29. Bb6 {[%emt 0:00:12]} Bc5+ {[%emt 0:04:50]} 30. Bxc5 {[%emt 0:00:07]} Rxc5 {[%emt 0:00:02][%mdl 4096] Endgame KRB-KRB} 31. Rd8+ {[%emt 0:03:36]} Kf7 {[%emt 0:00:41]} 32. Bd3 {[%emt 0:00:42]} Ke7 {[%emt 0:04:32]} ({Black should play} 32... Bxc4 $17 {aiming for ...Ke7.} 33. Be4 Be6) 33. Rb8 {[%emt 0:00:56]} (33. Ra8 $1 $11 {keeps the balance.}) 33... Kd7 {[%emt 0:03:55]} (33... Bxc4 $17 34. Rb7+ Kd6) 34. Rb6 {[%emt 0:01:10]} Rc6 {[%emt 0:02:42]} 35. c5 {[%emt 0:00:39] This move loses the game for White.} ({Better is} 35. Rb7+ $15 Rc7 36. Rb6) 35... Rxb6 $19 {[%emt 0:00:30]} ({Weaker is} 35... Rxc5 36. Rxa6 Ke7 37. Bb5 $11) 36. cxb6 {[%emt 0:00:01] KB-KB} Kc6 {[%emt 0:00:10]} 37. Bxa6 {[%emt 0:00:13]} Kxb6 {[%emt 0:00:06]} 38. Bb5 {[%emt 0:00:26]} Kc5 {[%emt 0:00:30] White must now prevent ...Bc4.} 39. Kf2 {[%emt 0:00:56]} Bc4 {[%emt 0:01:05]} 40. Be8 {[%emt 0:00:40]} Bd5 {[%emt 0:07:40]} 41. Bb5 {[%emt 0:00:00]} (41. Ke2 $142) 41... Bc6 {[%emt 0:00:00]} 42. c4 {[%emt 0:00:00]} Bb7 {[%emt 0:00:00]} 43. Ke3 {[%emt 0:00:00]} Bc8 {[%emt 0:00:00]} 44. g3 {[%emt 0:00:00]} (44. Kd3 $142) 44... Be6 {[%emt 0:00:00]} 45. Kd3 {[%emt 0:00:00]} Bf5+ {[%emt 0:00:00]} 46. Kc3 {[%emt 0:00:00]} (46. Ke3 {is a better defense.}) 46... g5 {[%emt 0:00:00] [#] Threatens to win with ...Bh3. Black is clearly winning.} 47. Be8 {[%emt 0:00:00]} (47. g4 $142 Bc8 48. Kd3) 47... Bh3 {[%emt 0:00:00]} 48. Bf7 {[%emt 0:01:37]} Bg2 {[%emt 0:00:00]} 49. Bd5 {[%emt 0:00:19]} Bf1 {[%emt 0:00:00]} 50. Be4 {[%emt 0:01:02]} Be2 {[%emt 0:10:24] Weighted Error Value: White=0.37/Black=0.10 (very precise)} 0-1

[Event "10th Amsterdam Science Park 2022"]
[Site "Amsterdam"]
[Date "2022.07.19"]
[Round "2.8"]
[White "Theulings, Paul-Peter"]
[Black "Afek, Yochanan"]
[Result "1/2-1/2"]
[ECO "E65"]
[WhiteElo "2056"]
[BlackElo "2210"]
[Annotator "TA"]
[PlyCount "119"]
[EventDate "2022.07.18"]
[EventCountry "NED"]
[SourceTitle "playchess.com"]
[Source "ChessBase"]
[SourceQuality "1"]
[TimeControl "5400+30"]

{[%evp 20,119,44,36,47,36,29,38,25,37,47,39,47,48,36,27,29,0,0,0,0,0,0,0,25,14,25,25,121,122,122,122,139,135,133,131,135,105,120,108,115,91,187,186,188,184,183,183,183,183,224,215,330,302,337,300,281,208,307,235,257,252,253,253,396,393,502,19,20,0,0,0,0,0,0,0,0,0,8,8,8,8,11,29,88,8,8,8,8,8,8,8,8,8,8,8,8,8,8,8,8,8]} 1. Nf3 {[%emt 0:00:05]} Nf6 {[%emt 0:00:31]} 2. c4 {[%emt 0:00:06]} g6 {[%emt 0:00:33]} 3. g3 {[%emt 0:00:10]} Bg7 {[%emt 0:00:05]} 4. Bg2 {[%emt 0:00:09]} O-O {[%emt 0:00:16]} 5. d4 {[%emt 0:00:13]} c5 {[%emt 0:01:12]} 6. O-O {[%emt 0:00:58]} Nc6 {[%emt 0:01:34]} 7. Nc3 {[%emt 0:00:42]} d6 {[%emt 0:04:02]} 8. dxc5 {[%emt 0:00:16]} dxc5 {[%emt 0:00:06]} 9. Bf4 {[%emt 0:00:09]} Nh5 {[%emt 0:03:44]} 10. Be3 {[%emt 0:00:12]} Nd4 {[%emt 0:04:08] 10...b6 is the fancy move.} 11. Qd2 {[%emt 0:00:39]} Bg4 {[%emt 0:02:44] E65: King's Indian: Fianchetto: 6...c5 7 0-0 without d5 by White.} 12. Rfd1 {[%emt 0:00:56][%cal Rf3d4,Bf1d1,Bd1d2,Bd2d7][%mdl 32] was the old line (12.Rad1).} Bxf3 {[%emt 0:04:22]} 13. Bxf3 {[%emt 0:00:41]} (13. exf3 {feels hotter.} e5 14. b4 cxb4 15. Nd5) 13... Nxf3+ {[%emt 0:01:42] White is slightly better.} 14. exf3 {[%emt 0:00:08]} Qxd2 {[%emt 0:01:14]} 15. Rxd2 {[%emt 0:00:06]} Bxc3 {[%emt 0:00:40]} 16. bxc3 {[%emt 0:00:07]} b6 {[%emt 0:02:04]} 17. Rd7 {[%emt 0:01:10]} Rfe8 {[%emt 0:11:38]} 18. Rad1 {[%emt 0:02:54]} Ng7 {[%emt 0:23:06]} 19. Rb7 {[%emt 0:11:09]} Nf5 {[%emt 0:00:34]} 20. Bf4 {[%emt 0:00:48] [#] Inhibits Nd6.} e5 $146 {[%emt 0:07:26]} ({Predecessor:} 20... f6 21. Rdd7 g5 22. Bc7 Kf7 23. g4 Nh4 24. f4 Ke6 25. Rd3 gxf4 26. Bxf4 Rad8 {½-½ (47) Trofimov,P (2157)-Gnusarev,P (2270) Cheliabinsk 2021}) 21. Bg5 {[%emt 0:05:47]} h6 {[%emt 0:00:26]} 22. Bf6 {[%emt 0:03:57]} Re6 {[%emt 0:00:44]} (22... Kf8 {keeps more tension.} 23. Rdd7 Re6 24. Rxf7+ Kg8) 23. Rxa7 {[%emt 0:03:19]} Rf8 {[%emt 0:06:07]} (23... Rxa7 $2 {gets mated.} 24. Rd8+) (23... Rae8 $1 $11 24. Rd8 Nd6) 24. Bd8 $36 {[%emt 0:01:29][%mdl 2048] White is in control.} Nd6 {[%emt 0:19:57]} 25. Be7 {[%emt 0:09:46]} ({Reject} 25. Bxb6 $6 Nc8 $11) 25... Nc8 {[%emt 0:00:01]} 26. Bxf8 {[%emt 0:00:11] White is much more active. The black rooks are badly placed.} Nxa7 {[%emt 0:00:02]} 27. Bxh6 {[%emt 0:14:44][%mdl 4096] Endgame KRB-KRN} Nc6 {[%emt 0:00:01] Prevents Rd8+.} 28. Bg5 {[%emt 0:05:27]} Kg7 {[%emt 0:00:25]} 29. Bd8 {[%emt 0:01:40]} Na5 {[%emt 0:00:07]} 30. g4 {[%emt 0:01:43]} Nxc4 {[%emt 0:02:00]} (30... f6 $16) 31. g5 $18 {[%emt 0:00:21]} Kf8 {[%emt 0:01:17]} 32. Bf6 {[%emt 0:01:31]} Nd6 {[%emt 0:01:08]} 33. Rd5 {[%emt 0:01:47]} e4 {[%emt 0:00:16]} 34. f4 {[%emt 0:12:23]} Ne8 {[%emt 0:00:29]} 35. Rd8 {[%emt 0:00:25]} Rd6 {[%emt 0:00:41]} (35... e3 {was called for.} 36. fxe3 Rxe3) 36. a4 {[%emt 0:01:03]} Re6 {[%emt 0:00:50]} 37. Be5 {[%emt 0:02:22]} Ke7 {[%emt 0:00:35]} 38. Rb8 {[%emt 0:00:15]} Rc6 {[%emt 0:00:34]} (38... f6 $142) 39. Kf1 {[%emt 0:02:57]} Nd6 {[%emt 0:00:07]} 40. Bxd6+ {[%emt 0:04:27]} Rxd6 {[%emt 0:00:03] KR-KR} 41. Rb7+ {[%emt 0:00:33]} Ke6 {[%emt 0:00:01]} (41... Kf8 $142 42. Ke2 Kg7) 42. Ke2 {[%emt 0:00:18]} f5 {[%emt 0:02:04]} 43. gxf6 $2 {[%emt 0:01:24] [#]} ({White should try} 43. c4 $18) 43... Kxf6 $11 {[%emt 0:00:09]} 44. Ke3 {[%emt 0:00:55]} Kf5 {[%emt 0:00:26]} 45. Rf7+ {[%emt 0:00:36]} Ke6 {[%emt 0:00:13]} 46. Rf8 {[%emt 0:04:53]} Rd3+ {[%emt 0:00:00]} 47. Kxe4 {[%emt 0:00:00]} Rxc3 {[%emt 0:00:00]} 48. Re8+ {[%emt 0:00:00]} Kf7 {[%emt 0:00:00]} 49. Rb8 {[%emt 0:00:00] Black should prevent Rb7+.} Rb3 {[%emt 0:00:00]} 50. Ke5 {[%emt 0:00:00] [#] And now a5 would win.} Rb4 {[%emt 0:00:00]} 51. Rb7+ {[%emt 0:00:00]} Kf8 {[%emt 0:00:00]} (51... Kg8 $1 $11) 52. h4 {[%emt 0:00:00]} (52. f5 $16 gxf5 53. f4 (53. Kxf5 Rxa4 54. f4 Ra2 $16)) 52... Rxa4 {[%emt 0:00:00] The position is equal.} 53. Rxb6 {[%emt 0:00:00]} Kg7 {[%emt 0:00:00]} 54. Rc6 {[%emt 0:00:00]} c4 {[%emt 0:00:00]} 55. Rc8 {[%emt 0:00:00]} Ra5+ {[%emt 0:00:00]} 56. Ke4 {[%emt 0:00:00]} Rh5 {[%emt 0:00:00]} 57. Rxc4 {[%emt 0:00:00]} Rxh4 {[%emt 0:00:00]} 58. Rc7+ {[%emt 0:00:00]} Kf6 {[%emt 0:00:00]} 59. Rc6+ {[%emt 0:00:00]} Kf7 {[%emt 0:00:00]} 60. Kf3 {[%emt 0:14:39] Blacks defense is rewarded with a draw.  Weighted Error Value: White=0.24 (precise) /Black=0.22 (precise)} 1/2-1/2

[Event "10th Amsterdam Science Park 2022"]
[Site "Amsterdam"]
[Date "2022.07.19"]
[Round "2.9"]
[White "Duson, Robin"]
[Black "Tan, Kevin"]
[Result "1/2-1/2"]
[ECO "D22"]
[WhiteElo "2027"]
[BlackElo "2209"]
[Annotator "TA"]
[PlyCount "54"]
[EventDate "2022.07.18"]
[EventCountry "NED"]
[SourceTitle "playchess.com"]
[Source "ChessBase"]
[SourceQuality "1"]
[TimeControl "5400+30"]

{[%evp 9,54,27,17,13,10,23,24,16,41,50,47,45,54,60,50,11,11,11,14,13,13,14,16,-20,-12,-29,-47,-143,-86,-85,-75,-127,-67,-96,-12,-11,-15,-10,-13,-25,-21,-24,-17,-27,-15,-21,-16]} 1. d4 {[%emt 0:00:05]} d5 {[%emt 0:00:09]} 2. c4 {[%emt 0:00:07]} dxc4 {[%emt 0:00:06]} 3. Nf3 {[%emt 0:00:40]} a6 {[%emt 0:07:56]} 4. e3 {[%emt 0:05:21]} b5 {[%emt 0:01:46]} 5. a4 {[%emt 0:01:16]} Bb7 {[%emt 0:00:52]} 6. axb5 {[%emt 0:04:28] D22: Queen's Gambit Accepted: 3 Nf3 a6 4 e3.} axb5 {[%emt 0:00:17]} 7. Rxa8 {[%emt 0:00:09]} Bxa8 {[%emt 0:00:05]} 8. b3 {[%emt 0:00:48] White has an edge.} c5 {[%emt 0:15:13]} 9. bxc4 {[%emt 0:06:05]} b4 {[%emt 0:00:43] [#]} 10. Nbd2 $146 {[%emt 0:02:50]} ({But not} 10. dxc5 Qxd1+ 11. Kxd1 Na6 $11) ({Predecessor:} 10. d5 e6 11. e4 Bb7 12. Nbd2 Nd7 {0-1 (12) Pech,J (1883)-Herzog,A (2142) LSS email 2017}) 10... Nd7 {[%emt 0:01:43]} 11. Qa4 {[%emt 0:08:19]} e6 {[%emt 0:06:36]} 12. Ne5 {[%emt 0:07:35] Strongly threatening Nxd7.} Ngf6 {[%emt 0:01:10]} 13. Nb3 {[%emt 0:02:04]} Bd6 {[%emt 0:11:27]} 14. Nxd7 {[%emt 0:03:00]} Nxd7 {[%emt 0:02:03]} 15. dxc5 {[%emt 0:01:10]} Be5 {[%emt 0:01:18]} 16. Qxb4 {[%emt 0:05:32][%cal Oc5c6]} O-O $1 {[%emt 0:02:48]} 17. Nd4 {[%emt 0:07:32]} Qe7 {[%emt 0:05:00]} 18. Nb5 {[%emt 0:04:59]} (18. Ke2 $15) 18... Nxc5 {[%emt 0:08:58]} (18... Rd8 $142 $1 19. Be2 Qg5) 19. Ba3 $17 {[%emt 0:00:43]} Rc8 {[%emt 0:00:34][%cal Oa8g2][%mdl 1024] Black has strong compensation.} 20. Qa5 {[%emt 0:04:28] [#]} ({White should play} 20. Qd2) 20... g6 {[%emt 0:11:22]} (20... Bb7 $1 $17 21. Qb6 Rc6) 21. h4 {[%emt 0:04:12] [#]} Be4 {[%emt 0:03:36]} (21... Bb7 $1 $17 {Hoping for ...Ra8.} 22. f3 Bg3+ 23. Kd1 Bxh4) 22. Qb6 $11 {[%emt 0:02:19]} Rc6 {[%emt 0:01:31]} 23. Qa5 {[%emt 0:05:57] aiming for Qa8+.} Qd7 {[%emt 0:01:27]} 24. Qd2 {[%emt 0:04:49]} Nd3+ {[%emt 0:04:00]} 25. Bxd3 {[%emt 0:00:51]} Qxd3 {[%emt 0:00:27]} 26. Qxd3 {[%emt 0:02:28]} Bxd3 {[%emt 0:00:08] This bishop pair is nice.} 27. Kd2 {[%emt 0:01:52]} Bxc4 {[%emt 0:00:14] Weighted Error Value: White=0.15 (very precise) /Black=0.16 (very precise)} 1/2-1/2